fUST/lending_fUST_20250506
["ID","MTS","AMOUNT","RATE_DAILY","PERIOD"]
[360083685,1746543048371,-400.0,0.00019452,2]
[360083686,1746543048381,-400.0,0.00019452,2]
[360083687,1746543048390,-561.19,0.00019452,2]
[360083688,1746543048400,-400.0,0.00019452,2]
[360083689,1746543048409,-400.0,0.00019452,2]
[360083690,1746543048418,-400.0,0.00019452,2]
[360083691,1746543048428,-1725.95,0.00019452,2]
[360083692,1746543048438,-400.0,0.00019452,2]
[360083693,1746543048447,-400.0,0.00019452,2]
[360083694,1746543048457,-2406.39,0.00019452,2]
[360083695,1746543048466,-777.59,0.00019452,2]
[360083696,1746543048475,-216.6160112,0.00019452,2]
[360083697,1746543048485,-400.0,0.00019452,2]
[360083698,1746543048494,-400.0,0.00019452,2]
[360083699,1746543048504,-400.0,0.00019452,2]
[360083700,1746543048513,-400.0,0.00019452,2]
[360083701,1746543048523,-2020.67,0.00019452,2]
[360083702,1746543048532,-643.79,0.00019452,2]
[360083703,1746543048541,-400.0,0.00019452,2]
[360083704,1746543048550,-1322.84,0.00019452,2]
[360083705,1746543048560,-400.0,0.00019452,2]
[360083706,1746543048569,-400.0,0.00019452,2]
[360083707,1746543048579,-151.0,0.00019452,2]
[360083708,1746543048589,-151.0,0.00019452,2]
[360083709,1746543048598,-400.0,0.00019452,2]
[360083710,1746543048609,-1682.92,0.00019452,2]
[360083711,1746543048618,-1874.49,0.00019452,2]
[360083712,1746543048628,-411.8726672,0.00019452,2]
[360083713,1746543048636,-400.0,0.00019452,2]
[360083714,1746543048646,-400.0,0.00019452,2]
[360083715,1746543048655,-400.0,0.00019452,2]
[360083716,1746543048664,-400.0,0.00019452,2]
[360083717,1746543048673,-400.0,0.00019452,2]
[360083718,1746543048682,-206.38521689,0.00019452,2]
[360083719,1746543048692,-400.0,0.00019452,2]
[360083720,1746543048702,-1387.4,0.00019452,2]
[360083721,1746543048712,-417.69,0.00019452,2]
[360083722,1746543048722,-408.62378726,0.00019452,2]
[360083723,1746543048731,-400.0,0.00019452,2]
[360083724,1746543048741,-7780.86,0.00019452,2]
[360083725,1746543048750,-400.0,0.00019452,2]
[360083726,1746543048759,-400.0,0.00019452,2]
[360083727,1746543048768,-405.48514162,0.00019452,2]
[360083728,1746543048777,-1344.17,0.00019452,2]
[360083729,1746543048787,-466.68,0.00019452,2]
[360083730,1746543048796,-400.0,0.00019452,2]
[360083731,1746543048805,-1938.79,0.00019452,2]
[360083732,1746543048815,-400.0,0.00019452,2]
[360083733,1746543048824,-400.0,0.00019452,2]
[360083734,1746543048833,-400.0,0.00019452,2]
[360083735,1746543048842,-833.12,0.00019452,2]
[360083736,1746543048852,-400.0,0.00019452,2]
[360083737,1746543048861,-400.0,0.00019452,2]
[360083738,1746543048870,-1257.59,0.00019452,2]
[360083739,1746543048881,-400.0,0.00019452,2]
[360083740,1746543048892,-400.0,0.00019452,2]
[360083741,1746543048902,-3771.53,0.00019452,2]
[360083742,1746543048912,-400.0,0.00019452,2]
[360083743,1746543048923,-734.22,0.00019452,2]
[360083744,1746543048934,-400.0,0.00019452,2]
[360083745,1746543048943,-7931.1,0.00019452,2]
[360083746,1746543048952,-400.0,0.00019452,2]
[360083747,1746543048962,-400.0,0.00019452,2]
[360083748,1746543048971,-3622.27,0.00019452,2]
[360083749,1746543048981,-632.724772,0.00019452,2]
[360083750,1746543048991,-632.724772,0.00019452,2]
[360083751,1746543049000,-400.0,0.00019452,2]
[360083752,1746543049010,-400.0,0.00019452,2]
[360083753,1746543049019,-632.724772,0.00019452,2]
[360083754,1746543049029,-1060.16,0.00019452,2]
[360083755,1746543049038,-632.724772,0.00019452,2]
[360083756,1746543049048,-400.0,0.00019452,2]
[360083757,1746543049058,-400.0,0.00019452,2]
[360083758,1746543049067,-389.70227789,0.00019452,2]
[360083759,1746543049076,-400.0,0.00019452,2]
[360083760,1746543049201,-405.51,0.00019452,2]
[360083761,1746543049230,-400.0,0.00019452,2]
[360083762,1746543049240,-510.88,0.00019452,2]
[360083763,1746543049250,-3088.97,0.00019452,2]
[360083764,1746543049259,-400.0,0.00019452,2]
[360083765,1746543049269,-506.65,0.00019452,2]
[360083766,1746543049279,-400.0,0.00019452,2]
[360083767,1746543049289,-211.34,0.00019452,2]
[360083768,1746543049299,-400.0,0.00019452,2]
[360083769,1746543049308,-400.0,0.00019452,2]
[360083770,1746543049318,-400.0,0.00019452,2]
[360083771,1746543049329,-411.64,0.00019452,2]
[360083772,1746543049339,-495.61,0.00019452,2]
[360083773,1746543049348,-400.0,0.00019452,2]
[360083774,1746543049358,-400.0,0.00019452,2]
[360083775,1746543049368,-884.07,0.00019452,2]
[360083776,1746543049377,-400.0,0.00019452,2]
[360083777,1746543049387,-400.0,0.00019452,2]
[360083778,1746543049397,-400.0,0.00019452,2]
[360083779,1746543049407,-400.0,0.00019452,2]
[360083780,1746543049417,-3470.31,0.00019452,2]
[360083781,1746543049427,-400.0,0.00019452,2]
[360083782,1746543049437,-400.0,0.00019452,2]
[360083783,1746543049446,-158.933712,0.00019452,2]
[360083784,1746543049456,-400.0,0.00019452,2]
[360083785,1746543049465,-18541.14,0.00019452,2]
[360083786,1746543049475,-400.0,0.00019452,2]
[360083787,1746543049485,-400.0,0.00019452,2]
[360083788,1746543049495,-400.0,0.00019452,2]
[360083789,1746543049505,-2462.55,0.00019452,2]
[360083790,1746543049515,-8115.91,0.00019452,2]
[360083791,1746543049524,-481.53152116,0.00019452,2]
[360083792,1746543049534,-501.60716646,0.00019452,2]
[360083793,1746543049543,-400.0,0.00019452,2]
[360083794,1746543049552,-400.0,0.00019452,2]
[360083795,1746543049562,-408.63,0.00019452,2]
[360083796,1746543049572,-1796.34,0.00019452,2]
[360083797,1746543049582,-798.68,0.00019452,2]
[360083798,1746543049592,-420.62,0.00019452,2]
[360083799,1746543049601,-151.0,0.00019452,2]
[360083800,1746543049611,-564.18,0.00019452,2]
[360083801,1746543049620,-400.0,0.00019452,2]
[360083802,1746543049629,-2768.75,0.00019452,2]
[360083803,1746543049638,-5434.56,0.00019452,2]
[360083804,1746543049647,-2880.62,0.00019452,2]
[360083805,1746543049657,-857.93,0.00019452,2]
[360083806,1746543049666,-584.98,0.00019452,2]
[360083807,1746543049676,-2553.13,0.00019452,2]
[360083808,1746543049686,-1594.54,0.00019452,2]
[360083809,1746543049695,-151.0,0.00019452,2]
[360083810,1746543049704,-151.0,0.00019452,2]
[360083811,1746543049714,-400.0,0.00019452,2]
[360083812,1746543049723,-1445.96,0.00019452,2]
[360083813,1746543049732,-666.87,0.00019452,2]
[360083814,1746543049742,-400.0,0.00019452,2]
[360083815,1746543049751,-1695.78,0.00019452,2]
[360083816,1746543049760,-505.86301473,0.00019452,2]
[360083817,1746543049769,-2659.17,0.00019452,2]
[360083818,1746543049779,-400.0,0.00019452,2]
[360083819,1746543049789,-586.68,0.00019452,2]
[360083820,1746543049798,-501.77136801,0.00019452,2]
[360083821,1746543049808,-451.19,0.00019452,2]
[360083822,1746543049818,-1213.8,0.00019452,2]
[360083823,1746543049827,-400.0,0.00019452,2]
[360083824,1746543049837,-400.0,0.00019452,2]
[360083825,1746543049846,-400.0,0.00019452,2]
[360083826,1746543049856,-400.0,0.00019452,2]
[360083827,1746543049866,-210.67578459,0.00019452,2]
[360083828,1746543049875,-265.031267,0.00019452,2]
[360083829,1746543049889,-265.031267,0.00019452,2]
[360083830,1746543049899,-400.0,0.00019452,2]
[360083831,1746543049907,-449.36,0.00019452,2]
[360083832,1746543049917,-400.0,0.00019452,2]
[360083833,1746543049927,-400.0,0.00019452,2]
[360083834,1746543049936,-3035.31,0.00019452,2]
[360083835,1746543049946,-2645.03,0.00019452,2]
[360083836,1746543049957,-265.031267,0.00019452,2]
[360083837,1746543049966,-400.0,0.00019452,2]
[360083838,1746543049976,-265.031267,0.00019452,2]
[360083839,1746543049985,-400.0,0.00019452,2]
[360083840,1746543049994,-400.0,0.00019452,2]
[360083841,1746543050003,-400.0,0.00019452,2]
[360083842,1746543050013,-500.0,0.00019452,2]
[360083843,1746543050022,-400.0,0.00019452,2]
[360083844,1746543050032,-1228.68,0.00019452,2]
[360083845,1746543050042,-161.011687,0.00019452,2]
[360083846,1746543050052,-161.011687,0.00019452,2]
[360083847,1746543050061,-400.0,0.00019452,2]
[360083848,1746543050071,-400.0,0.00019452,2]
[360083849,1746543050080,-400.0,0.00019452,2]
[360083850,1746543050090,-501.23350795,0.00019452,2]
[360083851,1746543050100,-400.0,0.00019452,2]
[360083852,1746543050109,-2621.11,0.00019452,2]
[360083853,1746543050118,-161.011687,0.00019452,2]
[360083854,1746543050129,-161.011687,0.00019452,2]
[360083855,1746543050139,-668.62,0.00019452,2]
[360083856,1746543050149,-400.0,0.00019452,2]
[360083857,1746543050159,-326.7264839,0.00019452,2]
[360083858,1746543050168,-625.03,0.00019452,2]
[360083859,1746543050177,-400.0,0.00019452,2]
[360083860,1746543050187,-2078.7,0.00019452,2]
[360083861,1746543050196,-2143.33,0.00019452,2]
[360083862,1746543050206,-400.0,0.00019452,2]
[360083863,1746543050216,-400.0,0.00019452,2]
[360083864,1746543050227,-400.0,0.00019452,2]
[360083865,1746543050236,-400.0,0.00019452,2]
[360083866,1746543050246,-1488.42,0.00019452,2]
[360083867,1746543050256,-400.0,0.00019452,2]
[360083868,1746543050266,-324.96985208,0.00019453,2]
[360083869,1746543050276,-200.0,0.00019454,4]
[360083870,1746543050285,-231.99734595,0.00019454,4]
[360083871,1746543050294,-286.26615067,0.00019473,2]
[360083872,1746543050304,-500.0,0.00019473,2]
[360083873,1746543050314,-185.89949078,0.00019473,2]
[360083874,1746543050324,-500.0,0.00019473,2]
[360083875,1746543050333,-500.0,0.00019473,2]
[360083876,1746543050343,-300.0,0.00019473,2]
[360083877,1746543050352,-951.6694427,0.00019626,2]
[360083878,1746543050362,-1000.0,0.00019679,2]
[360083879,1746543050371,-1000.0,0.00019679,2]
[360083880,1746543050382,-1000.0,0.00019679,2]
[360083881,1746543050392,-253.86093688,0.00019723,2]
[360083882,1746543050401,-4840.0,0.00019725,7]
[360083883,1746543050415,-2463.15382835,0.00019725,2]
[360083884,1746543050425,-313.9004746,0.00019726,3]
[360083885,1746543050435,-212.03916285,0.00019726,3]
[360083886,1746543050445,-160.0,0.00019726,3]
[360083887,1746543050455,-313667.58438399,0.00019726,5]
[360083888,1746543052128,194.93738202,0.00025,120]
[360083905,1746543281229,-500.0,0.00014123,2]
[360083906,1746543281251,-431.01330146,0.00014123,2]
[360083907,1746543281274,-500.0,0.00014123,2]
[360083908,1746543281297,-500.0,0.00014123,2]
[360083909,1746543281319,-500.0,0.00014123,2]
[360083910,1746543281342,-500.0,0.00014123,2]
[360083911,1746543281365,-500.0,0.00014123,2]
[360083912,1746543281396,-500.0,0.00014123,2]
[360083913,1746543281419,-500.0,0.00014123,2]
[360083914,1746543281442,-458.34499942,0.00014123,2]
[360083915,1746543281464,-110.64169912,0.00014123,2]
[360083936,1746544096678,503.29735371,0.0001,2]
[360083965,1746544232454,-541.5732004,0.00013699,2]
[360083966,1746544232464,-280.0,0.00014111,2]
[360083967,1746544232474,-300.0,0.00014112,2]
[360083968,1746544232483,-300.0,0.00014112,2]
[360083969,1746544232492,-300.0,0.00014112,2]
[360083970,1746544232502,-300.0,0.00014112,2]
[360083971,1746544232511,-486.66440695,0.00014112,2]
[360083972,1746544232523,-713.33559305,0.00014112,2]
[360083974,1746544232532,-500.0,0.00014113,2]
[360083975,1746544232541,-500.0,0.00014113,2]
[360083976,1746544232550,-500.0,0.00014113,2]
[360083977,1746544232560,-162.03833327,0.00014113,2]
[360083978,1746544232569,-155.32158012,0.00014113,2]
[360083979,1746544232578,-500.0,0.00014113,2]
[360083980,1746544232588,-500.0,0.00014113,2]
[360083981,1746544232601,-366.13299994,0.00014113,2]
[360083982,1746544232610,-500.0,0.00014113,2]
[360083983,1746544232619,-500.0,0.00014113,2]
[360083984,1746544232628,-500.0,0.00014113,2]
[360083985,1746544232638,-500.0,0.00014113,2]
[360083986,1746544232647,-500.0,0.00014113,2]
[360083987,1746544232657,-648.71601897,0.00014113,2]
[360083988,1746544232667,-500.0,0.00014113,2]
[360083989,1746544232676,-500.0,0.00014113,2]
[360083990,1746544232686,-500.0,0.00014113,2]
[360083991,1746544232695,-500.0,0.00014113,2]
[360083992,1746544232704,-500.0,0.00014113,2]
[360083993,1746544232713,-500.0,0.00014113,2]
[360083994,1746544232723,-500.0,0.00014113,2]
[360083995,1746544232732,-500.0,0.00014113,2]
[360083996,1746544232742,-500.0,0.00014113,2]
[360083997,1746544232752,-500.0,0.00014113,2]
[360083998,1746544232762,-500.0,0.00014113,2]
[360083999,1746544232771,-500.0,0.00014113,2]
[360084000,1746544232780,-500.0,0.00014113,2]
[360084001,1746544232790,-500.0,0.00014113,2]
[360084002,1746544232801,-500.0,0.00014113,2]
[360084003,1746544232810,-500.0,0.00014113,2]
[360084004,1746544232820,-500.0,0.00014113,2]
[360084005,1746544232830,-500.0,0.00014113,2]
[360084006,1746544232839,-500.0,0.00014113,2]
[360084007,1746544232849,-500.0,0.00014113,2]
[360084008,1746544232859,-500.0,0.00014113,2]
[360084009,1746544232868,-500.0,0.00014113,2]
[360084010,1746544232878,-500.0,0.00014113,2]
[360084011,1746544232888,-500.0,0.00014113,2]
[360084012,1746544232897,-500.0,0.00014113,2]
[360084013,1746544232907,-500.0,0.00014113,2]
[360084014,1746544232917,-500.0,0.00014113,2]
[360084015,1746544232926,-500.0,0.00014113,2]
[360084016,1746544232937,-500.0,0.00014113,2]
[360084017,1746544232947,-250.0,0.00014113,2]
[360084018,1746544232956,-500.0,0.00014113,2]
[360084019,1746544232965,-500.0,0.00014113,2]
[360084020,1746544232975,-19326.2201803,0.00014116,2]
[360084021,1746544232984,-500.0,0.000142,2]
[360084022,1746544232993,-500.0,0.000142,2]
[360084023,1746544233002,-500.0,0.000142,2]
[360084024,1746544233012,-500.0,0.000142,2]
[360084025,1746544233022,-247.0284256,0.0001433,2]
[360084026,1746544233031,-152.0,0.00015459,2]
[360084027,1746544233041,-420.0,0.00015459,2]
[360084028,1746544233052,-400.0,0.00015459,2]
[360084029,1746544233061,-1600.0,0.00015523,2]
[360084030,1746544233071,-1016.26182792,0.00015682,2]
[360084031,1746544233081,-9604.6977768,0.00016619,2]
[360084032,1746544233091,-254.940921,0.00016776,2]
[360084033,1746544233251,-10081.2655648,0.00016776,2]
[360084034,1746544233262,-307.99,0.00018,2]
[360084035,1746544233272,-307.99,0.00018,2]
[360084036,1746544233283,-1997.53920903,0.000181,2]
[360084037,1746544233292,-10852.91103,0.00018298,2]
[360084038,1746544233304,-5421.0158635,0.00018299,2]
[360084039,1746544233314,-616.03811159,0.00018333,2]
[360084040,1746544233324,-500.0,0.00018473,2]
[360084041,1746544233333,-307.99,0.0001849,2]
[360084042,1746544233343,-153.69,0.0001849,3]
[360084043,1746544233353,-495.52,0.0001849,3]
[360084044,1746544233362,-247.76,0.0001849,3]
[360084045,1746544233372,-743.31,0.0001849,3]
[360084046,1746544233382,-63802.32180863,0.000185,2]
[360084047,1746544233398,-11168.75224431,0.000185,2]
[360084048,1746544233409,-555.00371477,0.000185,2]
[360084049,1746544233425,-57054.86145553,0.000185,2]
[360084082,1746544238562,-1997.53920877,0.000181,2]
[360084084,1746544238574,-1997.53920877,0.000181,2]
[360084086,1746544238586,-1997.53920877,0.000181,2]
[360084088,1746544238601,-36580.01002781,0.000185,2]
[360084117,1746544238822,-200839.05074895,0.000185,2]
[360084119,1746544238835,-1997.53920877,0.00018659,2]
[360084122,1746544238847,-864.66975538,0.00018688,2]
[360084126,1746544238858,-155.0,0.00018737,2]
[360084129,1746544238870,-864.66975534,0.00018786,2]
[360084133,1746544238881,-160.0,0.00018788,2]
[360084136,1746544238892,-313.9004746,0.00018788,2]
[360084139,1746544238904,-864.66975534,0.00018883,2]
[360084141,1746544238916,-530.40653066,0.000189,2]
[360084143,1746544238927,-864.66975534,0.00018981,2]
[360084146,1746544238939,-864.66975534,0.00019078,2]
[360084148,1746544238950,-151.0,0.000191,2]
[360084150,1746544238962,-500.0,0.00019173,2]
[360084152,1746544238973,-500.0,0.00019173,2]
[360084155,1746544238984,-500.0,0.00019173,2]
[360084157,1746544238996,-557.86665131,0.00019173,2]
[360084159,1746544239007,-500.0,0.00019173,2]
[360084161,1746544239019,-500.0,0.00019173,2]
[360084163,1746544239030,-500.0,0.00019173,2]
[360084166,1746544239042,-500.78456312,0.00019173,2]
[360084168,1746544239055,-500.0,0.00019173,2]
[360084170,1746544239066,-500.0,0.00019173,2]
[360084172,1746544239078,-500.0,0.00019173,2]
[360084175,1746544239089,-500.0,0.00019173,2]
[360084177,1746544239101,-500.0,0.00019173,2]
[360084179,1746544239112,-500.0,0.00019173,2]
[360084181,1746544239124,-519.60099838,0.00019173,2]
[360084184,1746544239135,-500.0,0.00019173,2]
[360084186,1746544239147,-530.04952255,0.00019173,2]
[360084188,1746544239158,-500.0,0.00019173,2]
[360084191,1746544239171,-500.0,0.00019173,2]
[360084193,1746544239182,-500.0,0.00019173,2]
[360084195,1746544239194,-505.99404103,0.00019173,2]
[360084197,1746544239206,-500.0,0.00019173,2]
[360084200,1746544239217,-516.71584283,0.00019173,2]
[360084202,1746544239229,-500.0,0.00019173,2]
[360084204,1746544239240,-500.0,0.00019173,2]
[360084207,1746544239253,-500.0,0.00019173,2]
[360084209,1746544239264,-500.0,0.00019173,2]
[360084211,1746544239277,-500.0,0.00019173,2]
[360084213,1746544239288,-500.0,0.00019173,2]
[360084216,1746544239301,-500.0,0.00019173,2]
[360084218,1746544239314,-500.0,0.00019173,2]
[360084220,1746544239325,-500.0,0.00019173,2]
[360084223,1746544239337,-500.0,0.00019173,2]
[360084225,1746544239349,-500.0,0.00019173,2]
[360084227,1746544239361,-500.0,0.00019173,2]
[360084229,1746544239372,-500.0,0.00019173,2]
[360084232,1746544239386,-500.0,0.00019173,2]
[360084234,1746544239398,-500.0,0.00019173,2]
[360084236,1746544239411,-500.0,0.00019173,2]
[360084239,1746544239423,-500.0,0.00019173,2]
[360084241,1746544239436,-500.0,0.00019173,2]
[360084243,1746544239448,-500.0,0.00019173,2]
[360084246,1746544239460,-151.0,0.00019178,2]
[360084248,1746544239471,-151.0,0.00019178,2]
[360084250,1746544239480,-400.0,0.00019178,2]
[360084252,1746544239490,-409.23229525,0.00019178,2]
[360084254,1746544239499,-402.01282132,0.00019178,2]
[360084256,1746544239509,-400.0,0.00019178,2]
[360084258,1746544239518,-502.88033462,0.00019178,2]
[360084260,1746544239528,-503.4654279,0.00019178,2]
[360084262,1746544239538,-405.17132737,0.00019178,2]
[360084264,1746544239548,-400.0,0.00019178,2]
[360084266,1746544239559,-400.0,0.00019178,2]
[360084268,1746544239569,-400.0,0.00019178,2]
[360084270,1746544239579,-203.04065088,0.00019178,2]
[360084296,1746544239834,-425.58788198,0.00019178,2]
[360084300,1746544239861,-401.28101685,0.00019178,2]
[360084302,1746544239871,-400.0,0.00019178,2]
[360084304,1746544239881,-400.0,0.00019178,2]
[360084306,1746544239891,-400.97084348,0.00019178,2]
[360084308,1746544239901,-400.0,0.00019178,2]
[360084310,1746544239911,-400.0,0.00019178,2]
[360084312,1746544239920,-400.0,0.00019178,2]
[360084314,1746544239930,-400.0,0.00019178,2]
[360084316,1746544239940,-400.0,0.00019178,2]
[360084318,1746544239949,-400.0,0.00019178,2]
[360084320,1746544239959,-400.0,0.00019178,2]
[360084322,1746544239969,-500.0,0.00019178,2]
[360084324,1746544239978,-500.0,0.00019178,2]
[360084326,1746544239988,-500.0,0.00019178,2]
[360084328,1746544239997,-500.0,0.00019178,2]
[360084330,1746544240006,-413.17676072,0.00019178,2]
[360084332,1746544240016,-400.0,0.00019178,2]
[360084334,1746544240025,-400.0,0.00019178,2]
[360084336,1746544240035,-400.0,0.00019178,2]
[360084338,1746544240044,-400.0,0.00019178,2]
[360084340,1746544240055,-400.0,0.00019178,2]
[360084342,1746544240064,-413.55,0.00019178,2]
[360084344,1746544240074,-400.0,0.00019178,2]
[360084346,1746544240083,-401.05920041,0.00019178,2]
[360084348,1746544240093,-400.0,0.00019178,2]
[360084350,1746544240102,-400.0,0.00019178,2]
[360084352,1746544240111,-400.0,0.00019178,2]
[360084354,1746544240120,-510.75279138,0.00019178,2]
[360084356,1746544240130,-400.0,0.00019178,2]
[360084358,1746544240140,-427.63,0.00019178,2]
[360084360,1746544240149,-502.25070254,0.00019178,2]
[360084362,1746544240159,-400.0,0.00019178,2]
[360084364,1746544240169,-400.0,0.00019178,2]
[360084366,1746544240178,-400.91459012,0.00019178,2]
[360084368,1746544240187,-400.0,0.00019178,2]
[360084370,1746544240197,-400.0,0.00019178,2]
[360084372,1746544240206,-404.05696483,0.00019178,2]
[360084374,1746544240215,-1388.73,0.00019178,2]
[360084376,1746544240225,-500.0,0.00019178,2]
[360084378,1746544240235,-403.69009193,0.00019178,2]
[360084380,1746544240244,-400.0,0.00019178,2]
[360084382,1746544240253,-400.0,0.00019178,2]
[360084384,1746544240263,-590.54,0.00019178,2]
[360084386,1746544240272,-400.0,0.00019178,2]
[360084388,1746544240281,-424.31932119,0.00019178,2]
[360084390,1746544240291,-400.0,0.00019178,2]
[360084392,1746544240301,-400.0,0.00019178,2]
[360084394,1746544240311,-1000.0,0.00019178,2]
[360084396,1746544240322,-411.67,0.00019178,2]
[360084398,1746544240331,-400.0,0.00019178,2]
[360084400,1746544240341,-400.0,0.00019178,2]
[360084402,1746544240352,-358.0,0.00019178,2]
[360084404,1746544240361,-400.0,0.00019178,2]
[360084406,1746544240371,-500.84393885,0.00019178,2]
[360084408,1746544240382,-404.34239598,0.00019178,2]
[360084410,1746544240391,-400.0,0.00019178,2]
[360084412,1746544240400,-400.0,0.00019178,2]
[360084414,1746544240410,-404.71159141,0.00019178,2]
[360084416,1746544240419,-402.88448659,0.00019178,2]
[360084418,1746544240429,-400.0,0.00019178,2]
[360084420,1746544240439,-536.9,0.00019178,2]
[360084422,1746544240448,-403.89508288,0.00019178,2]
[360084424,1746544240458,-400.0,0.00019178,2]
[360084426,1746544240467,-400.0,0.00019178,2]
[360084428,1746544240477,-400.0,0.00019178,2]
[360084430,1746544240486,-215.71848918,0.00019178,2]
[360084432,1746544240495,-500.0,0.00019178,2]
[360084434,1746544240505,-500.0,0.00019178,2]
[360084436,1746544240514,-500.0,0.00019178,2]
[360084438,1746544240524,-533.07018499,0.00019178,2]
[360084440,1746544240533,-400.0,0.00019178,2]
[360084442,1746544240543,-400.0,0.00019178,2]
[360084444,1746544240552,-402.39565763,0.00019178,2]
[360084446,1746544240562,-400.0,0.00019178,2]
[360084448,1746544240572,-526.76559724,0.00019178,2]
[360084450,1746544240582,-400.0,0.00019178,2]
[360084452,1746544240595,-400.0,0.00019178,2]
[360084454,1746544240604,-400.0,0.00019178,2]
[360084456,1746544240614,-400.0,0.00019178,2]
[360084458,1746544240623,-400.0,0.00019178,2]
[360084460,1746544240633,-400.0,0.00019178,2]
[360084462,1746544240642,-400.0,0.00019178,2]
[360084464,1746544240652,-400.42065851,0.00019178,2]
[360084466,1746544240662,-400.0,0.00019178,2]
[360084468,1746544240673,-204.58577013,0.00019178,2]
[360084470,1746544240683,-402.56655068,0.00019178,2]
[360084472,1746544240693,-668.79,0.00019178,2]
[360084474,1746544240702,-400.0,0.00019178,2]
[360084476,1746544240712,-400.0,0.00019178,2]
[360084478,1746544240721,-400.0,0.00019178,2]
[360084480,1746544240730,-407.00011108,0.00019178,2]
[360084482,1746544240740,-250.28177358,0.00019178,2]
[360084484,1746544240750,-520.09874239,0.00019178,2]
[360084486,1746544240760,-476.26,0.00019178,2]
[360084488,1746544240769,-408.25050653,0.00019178,2]
[360084490,1746544240778,-400.0,0.00019178,2]
[360084492,1746544240787,-400.0,0.00019178,2]
[360084494,1746544240797,-400.0,0.00019178,2]
[360084496,1746544240806,-400.0,0.00019178,2]
[360084498,1746544240816,-400.0,0.00019178,2]
[360084500,1746544240825,-1112.8,0.00019178,2]
[360084502,1746544240834,-400.0,0.00019178,2]
[360084504,1746544240843,-400.0,0.00019178,2]
[360084506,1746544240852,-404.03946871,0.00019178,2]
[360084507,1746544240861,-404.05318023,0.00019178,2]
[360084508,1746544240870,-176.15756633,0.00019178,2]
[360084509,1746544240879,-400.0,0.00019178,2]
[360084510,1746544240889,-400.0,0.00019178,2]
[360084511,1746544240898,-400.0,0.00019178,2]
[360084512,1746544240906,-400.0,0.00019178,2]
[360084513,1746544240915,-401.53584369,0.00019178,2]
[360084514,1746544240924,-400.0,0.00019178,2]
[360084515,1746544240933,-514.92942498,0.00019178,2]
[360084516,1746544240942,-400.0,0.00019178,2]
[360084517,1746544240951,-400.0,0.00019178,2]
[360084518,1746544240959,-567.87,0.00019178,2]
[360084519,1746544240968,-400.0,0.00019178,2]
[360084520,1746544240977,-400.0,0.00019178,2]
[360084522,1746544240987,-400.0,0.00019178,2]
[360084524,1746544240996,-668.62,0.00019178,2]
[360084526,1746544241005,-400.0,0.00019178,2]
[360084527,1746544241014,-400.0,0.00019178,2]
[360084529,1746544241023,-425.56,0.00019178,2]
[360084531,1746544241032,-400.0,0.00019178,2]
[360084533,1746544241042,-400.0,0.00019178,2]
[360084535,1746544241051,-410.43810248,0.00019178,2]
[360084537,1746544241061,-400.0,0.00019178,2]
[360084539,1746544241070,-400.17178998,0.00019178,2]